[Event "World Women Teams  Championship"]
[Site "Sitges, Spain"]
[Date "2021.09.27"]
[Round "2.7"]
[White "Ouellet, Maili-Jade"]
[Black "Ushenina, Anna"]
[Result "1/2-1/2"]
[TimeControl "40+10"]
[WhiteElo "2113"]
[BlackElo "2418"]

1. d4 {[%clk 00:45:18]} {[%emt 00:00:02]} d5 {[%clk 00:45:12]} {[%emt
00:00:09]} 2. c4 {[%clk 00:45:26]} {[%emt 00:00:02]} dxc4 {[%clk 00:45:20]}
{[%emt 00:00:02]} 3. e4 {[%clk 00:45:35]} {[%emt 00:00:01]} Nf6 {[%clk
00:45:19]} {[%emt 00:00:10]} 4. e5 {[%clk 00:45:43]} {[%emt 00:00:02]} Nd5
{[%clk 00:45:28]} {[%emt 00:00:01]} 5. Bxc4 {[%clk 00:45:51]} {[%emt 00:00:03]}
Bf5 {[%clk 00:44:43]} {[%emt 00:00:55]} 6. Nc3 {[%clk 00:45:34]} {[%emt
00:00:27]} Nb6 {[%clk 00:43:08]} {[%emt 00:01:45]} 7. Bb3 {[%clk 00:45:38]}
{[%emt 00:00:06]} e6 {[%clk 00:43:11]} {[%emt 00:00:07]} 8. Nge2 {[%clk
00:45:45]} {[%emt 00:00:02]} Nc6 {[%clk 00:43:13]} {[%emt 00:00:08]} 9. O-O
{[%clk 00:45:40]} {[%emt 00:00:15]} Qd7 {[%clk 00:43:10]} {[%emt 00:00:14]} 10.
Be3 {[%clk 00:45:41]} {[%emt 00:00:08]} Be7 {[%clk 00:42:43]} {[%emt 00:00:37]}
11. Qc1 {[%clk 00:45:09]} {[%emt 00:00:42]} Na5 {[%clk 00:39:21]} {[%emt
00:03:32]} 12. Bc2 {[%clk 00:43:51]} {[%emt 00:01:28]} Bxc2 {[%clk 00:39:26]}
{[%emt 00:00:06]} 13. Qxc2 {[%clk 00:43:59]} {[%emt 00:00:02]} Nac4 {[%clk
00:39:35]} 14. Bf4 {[%clk 00:39:20]} {[%emt 00:04:49]} Nd5 {[%clk 00:37:33]}
{[%emt 00:02:12]} 15. Nxd5 {[%clk 00:36:50]} {[%emt 00:02:40]} Qxd5 {[%clk
00:35:29]} {[%emt 00:02:14]} 16. Rfd1 {[%clk 00:33:36]} {[%emt 00:03:22]} Nb6
{[%clk 00:34:09]} {[%emt 00:01:32]} 17. Be3 {[%clk 00:28:21]} {[%emt 00:05:25]}
Qc4 {[%clk 00:27:50]} {[%emt 00:06:29]} 18. Rac1 {[%clk 00:25:43]} {[%emt
00:02:47]} Qxc2 19. Rxc2 {[%clk 00:25:52]} c6 {[%clk 00:27:35]} {[%emt
00:00:16]} 20. g3 {[%clk 00:23:31]} {[%emt 00:02:31]} O-O {[%clk 00:27:16]}
{[%emt 00:00:28]} 21. Nc3 {[%clk 00:22:07]} {[%emt 00:01:34]} Rfd8 {[%clk
00:26:51]} {[%emt 00:00:35]} 22. Ne4 {[%clk 00:20:15]} {[%emt 00:02:02]} Rd5
{[%clk 00:26:51]} {[%emt 00:00:12]} 23. Kg2 {[%clk 00:18:33]} {[%emt 00:01:50]}
Rad8 {[%clk 00:25:06]} {[%emt 00:01:55]} 24. Rdc1 {[%clk 00:18:42]} {[%emt
00:00:02]} h6 {[%clk 00:21:24]} {[%emt 00:03:52]} 25. f4 {[%clk 00:16:57]}
{[%emt 00:01:55]} R5d7 {[%clk 00:21:11]} {[%emt 00:00:23]} 26. Bf2 {[%clk
00:16:40]} {[%emt 00:00:27]} Nd5 {[%clk 00:20:30]} {[%emt 00:00:51]} 27. a3
{[%clk 00:16:49]} {[%emt 00:00:02]} Nc7 {[%clk 00:19:53]} {[%emt 00:00:46]} 28.
Nc3 {[%clk 00:16:02]} {[%emt 00:00:57]} Nd5 {[%clk 00:17:48]} {[%emt 00:02:15]}
29. Ne4 {[%clk 00:14:32]} {[%emt 00:01:39]} a6 {[%clk 00:17:31]} {[%emt
00:00:28]} 30. Kf3 {[%clk 00:14:23]} {[%emt 00:00:19]} Nc7 {[%clk 00:17:36]}
{[%emt 00:00:04]} 31. Nc3 {[%clk 00:13:34]} {[%emt 00:00:59]} Nb5 {[%clk
00:17:45]} {[%emt 00:00:03]} 32. Ne2 {[%clk 00:13:06]} {[%emt 00:00:38]} f6
{[%clk 00:16:22]} {[%emt 00:01:33]} 33. Kg2 {[%clk 00:10:48]} {[%emt 00:02:27]}
Kf7 {[%clk 00:15:59]} {[%emt 00:00:33]} 34. g4 {[%clk 00:08:56]} {[%emt
00:02:02]} f5 {[%clk 00:12:24]} {[%emt 00:03:45]} 35. Kf3 {[%clk 00:07:05]}
{[%emt 00:02:00]} Nc7 {[%clk 00:12:27]} {[%emt 00:00:08]} 36. h4 {[%clk
00:05:23]} {[%emt 00:01:52]} g6 {[%clk 00:10:12]} {[%emt 00:02:27]} 37. Nc3
{[%clk 00:02:16]} {[%emt 00:03:16]} fxg4+ {[%clk 00:10:00]} {[%emt 00:00:22]}
38. Kxg4 {[%emt 00:00:04]} h5+ 39. Kf3 {[%clk 00:02:21]} {[%emt 00:00:10]} Ne8
{[%clk 00:10:19]} {[%emt 00:00:01]} 40. Na4 {[%clk 00:00:48]} {[%emt 00:01:43]}
Ng7 {[%clk 00:10:21]} {[%emt 00:00:08]} 41. Nb6 {[%clk 00:00:57]} Rc7 {[%clk
00:10:06]} {[%emt 00:00:25]} 42. Rc4 {[%clk 00:01:07]} Nf5 {[%clk 00:10:03]}
{[%emt 00:00:13]} 43. Rh1 {[%clk 00:01:16]} Re8 {[%clk 00:03:08]} {[%emt
00:07:05]} 44. Ke4 {[%clk 00:01:24]} {[%emt 00:00:01]} Bd8 {[%clk 00:03:02]}
{[%emt 00:00:17]} 45. Rc3 {[%clk 00:00:33]} {[%emt 00:01:00]} Rce7 {[%clk
00:02:59]} {[%emt 00:00:14]} 46. Na4 {[%clk 00:00:35]} {[%emt 00:00:08]} Rc7
{[%clk 00:01:53]} {[%emt 00:01:15]} 47. Nb6 {[%clk 00:00:27]} {[%emt 00:00:18]}
Rf8 {[%clk 00:01:54]} {[%emt 00:00:10]} 48. Rhh3 {[%clk 00:00:30]} {[%emt
00:00:07]} Kg7 {[%clk 00:01:54]} {[%emt 00:00:11]} 49. b4 {[%clk 00:00:32]}
{[%emt 00:00:08]} Rcf7 {[%clk 00:01:30]} {[%emt 00:00:33]} 50. Nc4 {[%clk
00:00:18]} {[%emt 00:00:25]} Ne7 {[%clk 00:00:36]} {[%emt 00:01:03]} 51. Rcf3
{[%clk 00:00:23]} {[%emt 00:00:05]} Nd5 {[%clk 00:00:45]} {[%emt 00:00:01]} 52.
Bg3 {[%clk 00:00:27]} {[%emt 00:00:07]} Bc7 {[%clk 00:00:51]} {[%emt 00:00:04]}
53. Rh2 {[%clk 00:00:29]} {[%emt 00:00:07]} Rd8 {[%clk 00:00:22]} {[%emt
00:00:39]} 54. Rd2 {[%clk 00:00:38]} {[%emt 00:00:01]} Ne7 {[%clk 00:00:23]}
{[%emt 00:00:09]} 55. Bf2 {[%clk 00:00:29]} {[%emt 00:00:19]} Nf5 {[%clk
00:00:31]} {[%emt 00:00:03]} 56. Rfd3 {[%clk 00:00:29]} {[%emt 00:00:09]} Rfd7
{[%clk 00:00:41]} 57. Rd1 {[%clk 00:00:17]} {[%emt 00:00:23]} Ra8 {[%clk
00:00:41]} {[%emt 00:00:10]} 58. Rb1 {[%clk 00:00:20]} {[%emt 00:00:07]} Bd8
{[%clk 00:00:45]} {[%emt 00:00:06]} 59. Rh1 {[%clk 00:00:26]} {[%emt 00:00:03]}
a5 {[%clk 00:00:49]} {[%emt 00:00:07]} 60. bxa5 {[%clk 00:00:29]} {[%emt
00:00:07]} Bxa5 {[%clk 00:00:57]} {[%emt 00:00:02]} 61. Rb3 {[%clk 00:00:30]}
{[%emt 00:00:09]} Bd8 {[%clk 00:00:53]} {[%emt 00:00:14]} 62. Rhh3 {[%clk
00:00:22]} {[%emt 00:00:17]} Ra4 {[%clk 00:00:33]} {[%emt 00:00:31]} 63. Rbc3
{[%clk 00:00:21]} {[%emt 00:00:11]} Ra6 {[%clk 00:00:21]} {[%emt 00:00:22]} 64.
Rb3 {[%clk 00:00:15]} {[%emt 00:00:16]} Be7 {[%clk 00:00:13]} {[%emt 00:00:18]}
65. Nd2 {[%clk 00:00:19]} {[%emt 00:00:05]} Ra4 {[%clk 00:00:18]} {[%emt
00:00:06]} 66. Nf3 {[%clk 00:00:14]} {[%emt 00:00:15]} c5 {[%clk 00:00:22]}
{[%emt 00:00:06]} 67. Rd3 {[%clk 00:00:23]} cxd4 {[%clk 00:00:27]} {[%emt
00:00:05]} 68. Ng5 {[%clk 00:00:32]} {[%emt 00:00:01]} Bxg5 {[%clk 00:00:35]}
{[%emt 00:00:03]} 69. hxg5 {[%clk 00:00:41]} Rd5 {[%clk 00:00:27]} {[%emt
00:00:18]} 70. Rh1 {[%clk 00:00:48]} {[%emt 00:00:03]} Rda5 {[%clk 00:00:17]}
{[%emt 00:00:21]} 71. Be1 {[%clk 00:00:49]} {[%emt 00:00:08]} Ra6 {[%clk
00:00:19]} {[%emt 00:00:08]} 72. Bb4 {[%clk 00:00:58]} Rc6 {[%clk 00:00:28]}
{[%emt 00:00:01]} 73. Rhd1 {[%clk 00:00:31]} {[%emt 00:00:37]} b6 {[%clk
00:00:29]} {[%emt 00:00:10]} 74. R1d2 {[%clk 00:00:24]} {[%emt 00:00:16]} h4
{[%clk 00:00:30]} {[%emt 00:00:09]} 75. Rh3 {[%clk 00:00:17]} {[%emt 00:00:16]}
Ra8 {[%clk 00:00:29]} {[%emt 00:00:11]} 76. Rb2 {[%clk 00:00:14]} {[%emt
00:00:13]} Ra4 {[%clk 00:00:16]} {[%emt 00:00:24]} 77. Rd2 {[%clk 00:00:20]}
{[%emt 00:00:04]} Rc1 {[%clk 00:00:18]} {[%emt 00:00:08]} 78. Rf2 {[%clk
00:00:14]} {[%emt 00:00:16]} Ra7 {[%clk 00:00:13]} {[%emt 00:00:15]} 79. Rb2
{[%clk 00:00:14]} {[%emt 00:00:10]} Ra4 {[%clk 00:00:13]} {[%emt 00:00:10]} 80.
Bd2 {[%clk 00:00:16]} {[%emt 00:00:07]} Rc6 {[%clk 00:00:17]} {[%emt 00:00:07]}
81. Bb4 {[%clk 00:00:24]} {[%emt 00:00:01]} Ra8 {[%clk 00:00:14]} {[%emt
00:00:14]} 82. Rhb3 {[%clk 00:00:18]} {[%emt 00:00:16]} Kf7 {[%clk 00:00:15]}
{[%emt 00:00:09]} 83. Be1 {[%clk 00:00:14]} {[%emt 00:00:14]} Rh8 {[%clk
00:00:16]} {[%emt 00:00:09]} 84. Rxb6 {[%clk 00:00:15]} {[%emt 00:00:10]} Rxb6
{[%clk 00:00:18]} {[%emt 00:00:08]} 85. Rxb6 {[%clk 00:00:24]} {[%emt
00:00:01]} h3 {[%clk 00:00:27]} 86. Rb7+ {[%clk 00:00:33]} Ne7 {[%clk
00:00:28]} {[%emt 00:00:08]} 87. Bb4 {[%clk 00:00:42]} {[%emt 00:00:01]} h2
{[%clk 00:00:37]} {[%emt 00:00:01]} 88. Rxe7+ {[%clk 00:00:51]} Kg8 {[%clk
00:00:43]} {[%emt 00:00:04]} 89. Re8+ {[%clk 00:00:54]} {[%emt 00:00:08]} Kg7
{[%clk 00:00:41]} {[%emt 00:00:12]} 90. Re7+ {[%clk 00:01:03]} Kg8 {[%clk
00:00:28]} {[%emt 00:00:23]} 91. Re8+ {[%clk 00:01:10]} {[%emt 00:00:02]} Kg7
{[%clk 00:00:36]} {[%emt 00:00:02]} 92. Re7+ {[%clk 00:01:19]} Kg8 {[%clk
00:00:33]} {[%emt 00:00:14]} 93. Re8+ {[%clk 00:01:28]} {[%emt 00:00:01]}
1/2-1/2

[Event "World Women Teams  Championship"]
[Site "Sitges, Spain"]
[Date "2021.09.27"]
[Round "2.8"]
[White "Buksa, Nataliya"]
[Black "Arribas Robaina, Maritza"]
[Result "1-0"]
[TimeControl "40+10"]
[WhiteElo "2184"]
[BlackElo "2261"]

1. e4 {[%clk 00:45:18]} {[%emt 00:00:02]} e6 {[%clk 00:45:18]} {[%emt
00:00:02]} 2. d4 {[%clk 00:45:26]} {[%emt 00:00:02]} d5 {[%clk 00:45:27]} 3.
Nc3 {[%clk 00:45:35]} {[%emt 00:00:02]} Bb4 {[%clk 00:45:32]} {[%emt 00:00:05]}
4. e5 {[%clk 00:45:43]} {[%emt 00:00:02]} Ne7 {[%clk 00:45:40]} {[%emt
00:00:01]} 5. a3 {[%clk 00:45:49]} {[%emt 00:00:04]} Bxc3+ {[%clk 00:45:48]}
{[%emt 00:00:02]} 6. bxc3 {[%clk 00:45:58]} {[%emt 00:00:01]} c5 {[%clk
00:45:34]} {[%emt 00:00:24]} 7. Qg4 {[%clk 00:46:06]} {[%emt 00:00:02]} O-O
{[%clk 00:44:45]} {[%emt 00:00:59]} 8. Bd3 {[%clk 00:46:13]} {[%emt 00:00:04]}
c4 {[%clk 00:44:38]} {[%emt 00:00:17]} 9. Bh6 {[%clk 00:38:58]} {[%emt
00:07:24]} Ng6 {[%clk 00:44:46]} {[%emt 00:00:03]} 10. Bxg6 {[%clk 00:39:05]}
{[%emt 00:00:03]} fxg6 {[%clk 00:44:54]} {[%emt 00:00:02]} 11. Be3 {[%clk
00:37:37]} {[%emt 00:01:38]} Nc6 {[%clk 00:44:16]} {[%emt 00:00:48]} 12. h4
{[%clk 00:34:17]} {[%emt 00:03:31]} Qe8 {[%clk 00:42:07]} {[%emt 00:02:19]} 13.
Nh3 {[%clk 00:33:35]} {[%emt 00:00:52]} Qf7 {[%clk 00:40:36]} {[%emt 00:01:41]}
14. Qe2 {[%clk 00:33:02]} {[%emt 00:00:43]} Bd7 {[%clk 00:39:55]} {[%emt
00:00:51]} 15. Ng5 {[%clk 00:28:16]} {[%emt 00:04:55]} Qe8 {[%clk 00:35:55]}
{[%emt 00:04:10]} 16. Kd2 {[%clk 00:24:08]} {[%emt 00:04:18]} h6 {[%clk
00:34:31]} {[%emt 00:01:34]} 17. Nh3 {[%clk 00:24:12]} {[%emt 00:00:06]} Ne7
{[%clk 00:34:28]} {[%emt 00:00:12]} 18. g4 {[%clk 00:21:38]} {[%emt 00:02:44]}
Ba4 {[%clk 00:27:23]} {[%emt 00:07:16]} 19. Rag1 {[%clk 00:21:08]} {[%emt
00:00:41]} Rc8 {[%clk 00:26:14]} {[%emt 00:01:19]} 20. h5 {[%clk 00:20:38]}
{[%emt 00:00:40]} gxh5 {[%clk 00:25:26]} {[%emt 00:00:57]} 21. g5 {[%clk
00:18:17]} {[%emt 00:02:32]} Qg6 {[%clk 00:22:43]} {[%emt 00:02:53]} 22. Kc1
{[%clk 00:18:25]} {[%emt 00:00:02]} Qe4 {[%clk 00:22:30]} {[%emt 00:00:22]} 23.
gxh6 {[%clk 00:18:28]} {[%emt 00:00:07]} g6 {[%clk 00:22:30]} {[%emt 00:00:10]}
24. Ng5 {[%clk 00:16:54]} {[%emt 00:01:44]} Qf5 {[%clk 00:22:37]} {[%emt
00:00:04]} 25. Rh3 {[%clk 00:16:53]} {[%emt 00:00:10]} Rc6 {[%clk 00:16:21]}
{[%emt 00:06:27]} 26. Rf3 {[%clk 00:16:11]} {[%emt 00:00:52]} Bxc2 {[%clk
00:16:28]} {[%emt 00:00:03]} 27. Rxf5 {[%clk 00:11:48]} {[%emt 00:04:33]} Bxf5
{[%clk 00:16:36]} {[%emt 00:00:02]} 28. Kb2 {[%clk 00:11:57]} {[%emt 00:00:01]}
Bd3 {[%clk 00:14:53]} {[%emt 00:01:54]} 29. Qd1 {[%clk 00:11:55]} {[%emt
00:00:12]} Rb6+ {[%clk 00:14:33]} {[%emt 00:00:30]} 30. Ka2 {[%clk 00:12:03]}
{[%emt 00:00:02]} Nf5 {[%clk 00:14:21]} {[%emt 00:00:22]} 31. Qa4 {[%clk
00:08:20]} {[%emt 00:03:53]} Nxh6 {[%clk 00:12:28]} {[%emt 00:02:04]} 32. Qd7
{[%clk 00:08:14]} {[%emt 00:00:17]} Nf7 {[%clk 00:12:22]} {[%emt 00:00:15]} 33.
Nh3 {[%clk 00:07:37]} {[%emt 00:00:46]} Nh8 {[%clk 00:11:26]} {[%emt 00:01:06]}
34. Bh6 {[%clk 00:06:40]} {[%emt 00:01:08]} Rf7 {[%clk 00:07:19]} {[%emt
00:04:17]} 35. Qe8+ {[%clk 00:06:45]} {[%emt 00:00:05]} Kh7 {[%clk 00:07:28]}
{[%emt 00:00:01]} 36. Ng5+ {[%clk 00:06:54]} Kxh6 {[%clk 00:07:36]} {[%emt
00:00:02]} 37. Qxh8+ {[%emt 00:00:02]} 1-0

[Event "World Women Teams  Championship"]
[Site "Sitges, Spain"]
[Date "2021.09.27"]
[Round "2.9"]
[White "Zawadzka, Jolanta"]
[Black "Paehtz, Elisabeth"]
[Result "1/2-1/2"]
[TimeControl "40+10"]
[WhiteElo "2313"]
[BlackElo "2371"]

1. e4 {[%clk 00:45:17]} c5 {[%clk 00:45:10]} 2. Nf3 {[%clk 00:45:17]} d6 {[%clk
00:45:10]} 3. Bb5+ {[%clk 00:45:17]} Bd7 {[%clk 00:45:10]} 4. Bxd7+ {[%clk
00:45:17]} Nxd7 {[%clk 00:45:10]} 5. O-O {[%clk 00:45:17]} Ngf6 {[%clk
00:45:10]} 6. Qe2 {[%clk 00:45:17]} e6 {[%clk 00:45:10]} 7. c3 {[%clk
00:45:17]} Be7 {[%clk 00:45:10]} 8. d4 {[%clk 00:45:17]} cxd4 {[%clk 00:45:10]}
9. cxd4 {[%clk 00:45:17]} d5 {[%clk 00:45:10]} 10. e5 {[%clk 00:45:17]} Ne4
{[%clk 00:45:10]} 11. Nbd2 {[%clk 00:45:17]} Nxd2 {[%clk 00:45:10]} 12. Bxd2
{[%clk 00:45:17]} O-O {[%clk 00:46:29]} {[%emt 08:18:39]} 13. Rac1 {[%clk
00:43:47]} Qb6 {[%clk 00:46:29]} 14. Bc3 Rfc8 {[%clk 00:46:29]} 15. Rc2 {[%clk
00:43:47]} Rc6 {[%clk 00:46:29]} 16. Rfc1 {[%clk 00:43:47]} Rac8 {[%clk
00:46:29]} 17. h4 {[%clk 00:43:47]} Qa6 {[%clk 00:46:29]} 18. Qxa6 {[%clk
00:43:47]} Rxa6 {[%clk 00:46:29]} 19. Bd2 {[%clk 00:43:47]} Rac6 {[%clk
00:46:29]} 20. Rxc6 {[%clk 00:43:47]} Rxc6 {[%clk 00:46:29]} 21. g3 {[%clk
00:43:47]} h5 {[%clk 00:46:29]} 22. Kf1 {[%clk 00:43:47]} f6 {[%clk 00:46:29]}
23. Ke2 {[%clk 00:43:47]} Kf7 {[%clk 00:46:29]} 24. Rc3 {[%clk 00:43:47]} Kg6
{[%clk 00:46:29]} 25. Rb3 {[%clk 00:43:47]} b6 {[%clk 00:46:29]} 26. Rc3 {[%clk
00:43:47]} Nb8 {[%clk 00:46:29]} 27. Ne1 {[%clk 00:43:47]} Rxc3 {[%clk
00:46:29]} 28. Bxc3 {[%clk 00:43:47]} fxe5 {[%clk 00:46:29]} 29. dxe5 {[%clk
00:43:47]} Nc6 {[%clk 00:46:29]} 30. Nc2 {[%clk 00:43:47]} a5 {[%clk 00:46:29]}
31. f4 {[%clk 00:43:47]} Bc5 {[%clk 00:46:29]} 32. Kf3 {[%clk 00:43:47]} Kf5
{[%clk 00:46:29]} 33. Ne1 {[%clk 00:43:47]} b5 {[%clk 00:46:29]} 34. Nd3 {[%clk
00:43:47]} Bb6 {[%clk 00:23:21]} {[%emt 01:09:47]} 35. b3 {[%clk 00:05:03]} b4
{[%clk 00:23:21]} 36. Bb2 {[%clk 00:05:03]} Bd4 {[%clk 00:20:50]} {[%emt
00:02:59]} 37. Bc1 {[%clk 00:05:04]} Na7 {[%clk 00:20:50]} 38. a3 {[%clk
00:05:04]} bxa3 {[%clk 00:20:50]} 39. Bxa3 {[%clk 00:05:04]} Nb5 {[%clk
00:18:11]} {[%emt 00:03:46]} 40. Bc1 {[%clk 00:05:07]} {[%emt 00:00:07]} Bg1
{[%clk 00:16:41]} {[%emt 00:01:24]} 41. Bb2 {[%clk 00:05:06]} {[%emt 00:00:27]}
Bb6 {[%clk 00:16:35]} {[%emt 00:00:16]} 42. Nc1 {[%clk 00:04:07]} {[%emt
00:01:09]} Bd4 {[%clk 00:13:55]} {[%emt 00:02:50]} 43. Bxd4 {[%clk 00:04:15]}
{[%emt 00:00:02]} Nxd4+ {[%clk 00:14:04]} {[%emt 00:00:01]} 44. Ke3 {[%clk
00:04:24]} {[%emt 00:00:01]} Nc2+ {[%clk 00:14:03]} {[%emt 00:00:11]} 45. Kd3
{[%clk 00:03:36]} {[%emt 00:00:58]} Nb4+ {[%clk 00:14:03]} {[%emt 00:00:11]} 46.
Kd4 {[%clk 00:03:41]} {[%emt 00:00:06]} Na6 {[%clk 00:11:28]} {[%emt 00:02:44]}
47. Ne2 {[%clk 00:03:11]} {[%emt 00:00:41]} Kg4 {[%clk 00:11:03]} {[%emt
00:00:34]} 48. Ke3 {[%clk 00:03:09]} {[%emt 00:00:11]} Nc5 {[%clk 00:10:17]}
{[%emt 00:00:56]} 49. Nd4 {[%clk 00:03:14]} {[%emt 00:00:06]} g6 {[%clk
00:08:53]} {[%emt 00:01:34]} 50. Kf2 {[%clk 00:03:22]} {[%emt 00:00:02]} Ne4+
{[%clk 00:07:23]} {[%emt 00:01:39]} 51. Kg2 {[%clk 00:03:17]} {[%emt 00:00:15]}
Nxg3 {[%clk 00:05:47]} {[%emt 00:01:47]} 52. Nxe6 {[%clk 00:03:24]} {[%emt
00:00:03]} Nf5 {[%clk 00:05:50]} {[%emt 00:00:06]} 53. Nf8 {[%clk 00:02:56]}
{[%emt 00:00:39]} Ne7 {[%clk 00:04:53]} {[%emt 00:01:07]} 54. Ne6 {[%clk
00:01:14]} {[%emt 00:01:52]} Kf5 {[%clk 00:04:54]} {[%emt 00:00:08]} 55. Nd8
{[%clk 00:01:15]} {[%emt 00:00:09]} Kxf4 {[%clk 00:04:57]} {[%emt 00:00:07]} 56.
e6 {[%clk 00:01:16]} {[%emt 00:00:08]} Kg4 {[%clk 00:02:17]} {[%emt 00:02:50]}
57. Nb7 {[%clk 00:01:11]} {[%emt 00:00:15]} Kf5 {[%clk 00:02:02]} {[%emt
00:00:25]} 58. Nc5 {[%clk 00:01:19]} {[%emt 00:00:02]} Ke5 {[%clk 00:01:59]}
{[%emt 00:00:13]} 59. Kf3 {[%clk 00:01:28]} {[%emt 00:00:02]} Nf5 {[%clk
00:01:24]} {[%emt 00:00:44]} 60. Ke2 {[%clk 00:01:24]} {[%emt 00:00:14]} Kd6
{[%clk 00:01:11]} {[%emt 00:00:23]} 61. Nb7+ {[%clk 00:01:32]} {[%emt
00:00:02]} Kxe6 {[%clk 00:01:20]} {[%emt 00:00:01]} 62. Nxa5 {[%clk 00:01:41]}
{[%emt 00:00:01]} Nxh4 {[%clk 00:01:23]} {[%emt 00:00:07]} 63. b4 {[%clk
00:01:44]} {[%emt 00:00:07]} Nf5 {[%clk 00:01:31]} {[%emt 00:00:02]} 64. Nb3
{[%clk 00:01:51]} {[%emt 00:00:02]} Kd6 {[%clk 00:01:32]} {[%emt 00:00:09]} 65.
Nc5 {[%clk 00:01:46]} {[%emt 00:00:16]} h4 {[%clk 00:01:22]} {[%emt 00:00:20]}
66. Kf3 {[%clk 00:01:54]} {[%emt 00:00:02]} h3 {[%clk 00:00:35]} {[%emt
00:00:57]} 67. Nd3 {[%clk 00:01:56]} {[%emt 00:00:09]} g5 {[%clk 00:00:15]}
{[%emt 00:00:31]} 68. Kg4 {[%clk 00:02:00]} {[%emt 00:00:05]} h2 {[%clk
00:00:22]} {[%emt 00:00:03]} 69. Nf2 {[%clk 00:02:09]} {[%emt 00:00:01]} Ne3+
{[%clk 00:00:14]} {[%emt 00:00:18]} 70. Kxg5 {[%clk 00:00:25]} {[%emt
00:01:54]} Ke5 {[%clk 00:00:12]} {[%emt 00:00:12]} 71. b5 {[%clk 00:00:15]}
{[%emt 00:00:20]} Nd1 {[%clk 00:00:20]} {[%emt 00:00:02]} 72. Ng4+ {[%clk
00:00:24]} {[%emt 00:00:02]} Kd6 {[%clk 00:00:27]} {[%emt 00:00:02]} 73. Nxh2
{[%clk 00:00:31]} {[%emt 00:00:03]} Kc5 {[%clk 00:00:35]} {[%emt 00:00:02]} 74.
Kf4 {[%clk 00:00:29]} {[%emt 00:00:11]} Kxb5 {[%clk 00:00:43]} {[%emt
00:00:02]} 75. Nf3 {[%clk 00:00:34]} {[%emt 00:00:05]} Kc5 {[%clk 00:00:51]}
{[%emt 00:00:03]} 76. Ng5 {[%clk 00:00:34]} {[%emt 00:00:11]} Nb2 {[%clk
00:00:56]} {[%emt 00:00:04]} 77. Ne6+ {[%clk 00:00:38]} {[%emt 00:00:06]} Kc4
{[%clk 00:01:04]} {[%emt 00:00:02]} 78. Ke3 {[%clk 00:00:41]} {[%emt 00:00:07]}
Nd1+ {[%clk 00:01:11]} {[%emt 00:00:02]} 79. Kd2 {[%clk 00:00:48]} {[%emt
00:00:04]} Nc3 {[%clk 00:01:18]} {[%emt 00:00:02]} 80. Kc2 {[%clk 00:00:50]}
{[%emt 00:00:09]} Nb5 {[%clk 00:01:26]} {[%emt 00:00:02]} 81. Kd1 {[%clk
00:00:47]} {[%emt 00:00:13]} Nd4 {[%clk 00:01:34]} {[%emt 00:00:01]} 82. Nf4
{[%clk 00:00:56]} {[%emt 00:00:02]} 1/2-1/2